[Event "28th Hit Open-A 2024"]
[Site "Nova Gorica"]
[Date "2024.01.30"]
[Round "6.29"]
[White "Labrovic, Jakov"]
[Black "Belyaletdinov, Leonard"]
[Result "0-1"]
[ECO "A13"]
[WhiteElo "1925"]
[BlackElo "1581"]
[Annotator "NA RC"]
[PlyCount "100"]
[EventDate "2024.01.22"]
[EventType "swiss"]
[EventCountry "SLO"]
[SourceTitle "playchess.com"]
[Source "ChessBase"]
[SourceQuality "1"]
[TimeControl "5400+30"]

1. Nf3 {[%emt 0:00:04]} Nf6 {[%emt 0:00:07]} 2. g3 {[%emt 0:00:08]} d5 {[%emt 0:02:16]} 3. Bg2 {[%emt 0:00:10]} c6 {[%emt 0:00:06]} 4. O-O {[%emt 0:00:16]} Nbd7 {[%emt 0:00:23]} 5. c4 {[%emt 0:00:40]} e6 {[%emt 0:00:49]} 6. b3 {[%emt 0:02:12]} Bd6 {[%emt 0:00:15]} 7. Bb2 {[%emt 0:00:10]} h5 {[%emt 0:00:49]} 8. h4 {[%emt 0:00:15]} Qb6 {[%emt 0:00:22]} 9. Nc3 {[%emt 0:01:08]} dxc4 {[%emt 0:00:16]} 10. Na4 {[%emt 0:00:02]} Qa6 {[%emt 0:01:57]} 11. bxc4 {[%emt 0:00:35]} Qxc4 {[%emt 0:03:21]} 12. d3 {[%emt 0:00:02]} Qg4 {[%emt 0:01:07]} 13. e4 {[%emt 0:02:00]} Bc7 {[%emt 0:02:16]} 14. Ba3 {[%emt 0:04:34]} a5 {[%emt 0:05:27]} 15. Qc2 {[%emt 0:02:07]} Qg6 {[%emt 0:03:40]} 16. Rab1 {[%emt 0:03:15]} Ng4 {[%emt 0:02:43]} 17. Nc5 {[%emt 0:02:00]} b6 {[%emt 0:01:15]} 18. Na4 {[%emt 0:13:08]} Bb7 {[%emt 0:03:11]} 19. Rfc1 {[%emt 0:04:31]} Bd8 {[%emt 0:15:53]} 20. Ng5 {[%emt 0:12:05]} b5 {[%emt 0:01:08]} 21. Nh3 {[%emt 0:00:59]} Rc8 {[%emt 0:06:22]} 22. Nc5 {[%emt 0:00:29]} Nxc5 {[%emt 0:00:33]} 23. Qxc5 {[%emt 0:02:48]} b4 {[%emt 0:01:08]} 24. Bb2 {[%emt 0:03:06]} Bc7 {[%emt 0:09:05]} 25. a3 {[%emt 0:03:38]} Nf6 {[%emt 0:01:06]} 26. axb4 {[%emt 0:02:20]} Nd7 {[%emt 0:01:13]} 27. Qa7 {[%emt 0:04:11]} Ba8 {[%emt 0:03:06]} 28. bxa5 {[%emt 0:01:17]} O-O {[%emt 0:00:24]} 29. Bd4 {[%emt 0:03:27]} Nf6 {[%emt 0:06:00]} 30. Bb6 {[%emt 0:05:11]} Bd6 {[%emt 0:01:22]} 31. Bc5 {[%emt 0:01:20]} Rc7 {[%emt 0:02:08]} 32. Qa6 {[%emt 0:00:19]} Bxc5 {[%emt 0:00:13]} 33. Rxc5 {[%emt 0:00:08]} Nd7 {[%emt 0:00:45]} 34. Rc3 {[%emt 0:03:20]} Qf6 {[%emt 0:00:29]} 35. Qc4 {[%emt 0:01:07]} Ne5 {[%emt 0:00:25]} 36. Qc5 {[%emt 0:00:44]} Nd7 {[%emt 0:00:39]} 37. Qa3 {[%emt 0:00:15]} Ra7 {[%emt 0:00:33]} 38. Qa1 {[%emt 0:02:44]} Qd8 {[%emt 0:00:47]} 39. Ra3 {[%emt 0:00:40]} Ra6 {[%emt 0:01:55]} 40. d4 {[%emt 0:00:48]} c5 {[%emt 0:00:13]} 41. Qc3 {[%emt 0:01:45]} Qe7 {[%emt 0:00:39]} 42. d5 {[%emt 0:01:10]} exd5 {[%emt 0:01:32]} 43. exd5 {[%emt 0:00:21]} Qd6 {[%emt 0:00:20]} 44. Nf4 {[%emt 0:01:30]} Nf6 {[%emt 0:00:53]} 45. Qc4 {[%emt 0:01:57]} Rd8 {[%emt 0:01:54]} 46. Rb5 {[%emt 0:01:10]} Nd7 {[%emt 0:02:53]} 47. Nxh5 {[%emt 0:01:47]} Rc8 {[%emt 0:01:13]} 48. Qg4 {[%emt 0:01:01]} g6 {[%emt 0:01:07]} 49. Qxd7 {[%emt 0:00:43]} Qxd7 {[%emt 0:00:24]} 50. Nf6+ {[%emt 0:00:09]} Rxf6 {[%emt 0:00:03]} 0-1

[Event "28th Hit Open-A 2024"]
[Site "Nova Gorica"]
[Date "2024.01.30"]
[Round "6.30"]
[White "Beber, Anja"]
[Black "Privitera, Franco"]
[Result "0-1"]
[ECO "A46"]
[WhiteElo "1606"]
[BlackElo "1919"]
[Annotator "TA"]
[PlyCount "76"]
[EventDate "2024.01.22"]
[EventType "swiss"]
[EventCountry "SLO"]
[SourceTitle "playchess.com"]
[Source "ChessBase"]
[SourceQuality "1"]
[TimeControl "5400+30"]

{[%evp 9,76,24,36,20,58,27,44,53,76,68,66,29,36,44,166,92,88,29,17,-22,-12,-13,0,0,-5,-25,-6,-112,-102,-91,-106,-385,-370,-381,-381,-360,-60,-376,-76,-68,74,63,61,61,55,0,12,0,24,-29,-16,-23,6,0,0,0,13,12,17,0,18,16,35,37,33,14,33,15,110]} 1. d4 {[%emt 0:00:23]} Nf6 {[%emt 0:00:07]} 2. Nf3 {[%emt 0:00:30]} b5 {[%emt 0:00:12]} 3. Bf4 {[%emt 0:01:23]} Bb7 {[%emt 0:00:24]} 4. e3 {[%emt 0:00:47]} a6 {[%emt 0:00:10]} 5. Bd3 {[%emt 0:07:40]} e6 {[%emt 0:00:22]} 6. Nbd2 {[%emt 0:01:42]} d5 {[%emt 0:10:25]} 7. O-O {[%emt 0:01:22]} Nbd7 {[%emt 0:00:14]} 8. a4 {[%emt 0:05:54] White is slightly better.} bxa4 {[%emt 0:02:03]} 9. Rxa4 {[%emt 0:01:52]} c5 {[%emt 0:00:18]} 10. b3 {[%emt 0:02:47]} Be7 {[%emt 0:01:46]} 11. Ne5 {[%emt 0:05:46]} Ne4 {[%emt 0:04:24]} (11... a5 $14) 12. Nxe4 {[%emt 0:03:57]} (12. Bxe4 $1 $18 dxe4 13. dxc5 Bxc5 14. Nxe4 Bxe4 15. Rxe4 Nxe5 16. Bxe5 (16. Rxe5 Qxd1 17. Rxd1 Rc8 $18)) 12... dxe4 $16 {[%emt 0:00:14]} 13. Be2 {[%emt 0:00:35]} ({White should play} 13. Nxd7 $16 Qxd7 14. Be2) 13... Nb6 $11 {[%emt 0:01:07][%cal Bd7b6,Bb6d5,Bd5c3][%mdl 32]} 14. Ra2 {[%emt 0:02:05]} Nd5 {[%emt 0:00:21]} 15. Qa1 {[%emt 0:04:08][%cal Re2a6] Dodges Nc3} O-O {[%emt 0:14:38]} (15... Nxf4 16. Bxa6 Rxa6 17. Rxa6 Ne2+ 18. Kh1 $14) 16. dxc5 {[%emt 0:12:51]} Bxc5 {[%emt 0:07:53]} 17. Rd1 {[%emt 0:13:50] Strongly threatening c4.} Qc8 {[%emt 0:01:43]} 18. Bg3 {[%emt 0:00:27]} (18. c3 $11) 18... Bb4 $17 {[%emt 0:03:57]} 19. Nc4 {[%emt 0:14:26]} Nc3 {[%emt 0:04:26]} 20. Bd6 $2 {[%emt 0:00:57][%mdl 8192]} Nxe2+ $19 {[%emt 0:23:00]} 21. Kf1 {[%emt 0:00:13]} Bc3 {[%emt 0:11:15]} 22. Qb1 {[%emt 0:00:35][%cal Od6f8] [#]} Bd5 $2 {[%emt 0:01:26]} 23. Ra4 {[%emt 0:00:15][%mdl 8192] [#] Inhibits a5.} (23. Bxf8 $15 Bxc4 (23... Kxf8 24. Nb6 $11) 24. bxc4 Qxc4 (24... Kxf8 25. Qb6 $11) (24... Rb8 $2 25. Bd6 $18) 25. Qb3 Ng3+ 26. Kg1) 23... Bf6 $2 {[%emt 0:00:51]} 24. Kxe2 $17 {[%emt 0:00:35] [#]} Bc6 $1 {[%emt 0:02:05]} 25. Nb6 $36 {[%emt 0:05:07][%mdl 2048] White has some pressure.} Qb7 {[%emt 0:00:58]} 26. Nxa8 {[%emt 0:02:49]} Rxa8 {[%emt 0:00:19] [#]} 27. Rad4 {[%emt 0:04:40]} Qb5+ {[%emt 0:01:50]} 28. Ke1 {[%emt 0:01:57]} Qg5 {[%emt 0:00:50] [#]} 29. Bg3 {[%emt 0:01:35]} Bxd4 $11 {[%emt 0:01:18]} 30. Rxd4 {[%emt 0:00:29] White is weak on the light squares} h5 {[%emt 0:00:44]} 31. h4 {[%emt 0:02:39]} Qa5+ {[%emt 0:00:43]} 32. b4 {[%emt 0:00:13]} Qb5 {[%emt 0:00:35]} 33. c4 {[%emt 0:01:33] Dodges Bd5} Qa4 {[%emt 0:00:42]} 34. Kf1 {[%emt 0:00:24][%cal Be1f1,Bf1g1,Bg1h2][%mdl 32]} Rc8 {[%emt 0:00:15]} (34... f6 $5) 35. Kg1 {[%emt 0:00:40]} Bb7 {[%emt 0:00:43]} 36. Kh2 {[%emt 0:00:41]} f6 {[%emt 0:01:02]} 37. c5 {[%emt 0:00:36][%cal Ob4b5] And now b5! would win.} Bd5 {[%emt 0:01:40]} 38. Qd1 {[%emt 0:00:38]} Qe8 {[%emt 0:00:31][%mdl 32768] Weighted Error Value: White=0.47/Black=0.40.  Loses game:     	White=2     	---        Missed win:     	---       	Black=2      Mistake:       	White=5     	Black=3      Inaccurate:     	White=3     	Black=2      OK:         	White=7     	Black=10     Best:        	White=3     	Black=4     . Loss on time!?} (38... Qxd1 $11 {remains equal.} 39. Rxd1 Bc6) 0-1

[Event "28th Hit Open-A 2024"]
[Site "Nova Gorica"]
[Date "2024.01.30"]
[Round "6.31"]
[White "Vicic, Mark"]
[Black "Hrescak, Ivana"]
[Result "0-1"]
[ECO "A01"]
[WhiteElo "1729"]
[BlackElo "2117"]
[Annotator "TA"]
[PlyCount "80"]
[EventDate "2024.01.22"]
[EventType "swiss"]
[EventCountry "SLO"]
[SourceTitle "playchess.com"]
[Source "ChessBase"]
[SourceQuality "1"]
[TimeControl "5400+30"]

{[%evp 9,80,18,24,1,33,35,34,30,32,-36,31,-60,-22,-94,-104,-116,-118,-160,-96,-183,-133,-204,-208,-193,-203,-250,-205,-243,-251,-272,-277,-281,-276,-316,-320,-317,-277,-285,-262,-252,-214,-241,-214,-219,-210,-278,-272,-281,-284,-349,-345,-398,-395,-437,-434,-449,-387,-461,-461,-500,-465,-542,-565,-639,-648,-720,-742,-768,-731,-872,-844,-887,-891]} 1. b3 {[%emt 0:00:02]} e5 {[%emt 0:00:30]} 2. Bb2 {[%emt 0:00:06]} d6 {[%emt 0:00:48]} 3. c4 {[%emt 0:00:16]} Nf6 {[%emt 0:07:02]} 4. g3 {[%emt 0:00:59]} Be7 {[%emt 0:00:58]} 5. Bg2 {[%emt 0:00:19]} c6 {[%emt 0:00:11]} 6. e3 {[%emt 0:00:18]} Bg4 {[%emt 0:01:12]} 7. Ne2 {[%emt 0:01:32]} Na6 {[%emt 0:05:39]} 8. d3 {[%emt 0:15:42] White is slightly better.} h5 {[%emt 0:08:55]} 9. Qd2 {[%emt 0:02:27]} (9. h3 $14 Be6 10. Nd2) 9... Qd7 {[%emt 0:08:02]} (9... h4 $15 10. h3 hxg3 11. fxg3 (11. hxg4 gxf2+ 12. Kxf2 Nxg4+ 13. Kf3 Rxh1 $17) 11... Bf5) 10. d4 {[%emt 0:06:27]} (10. h3 $14 Be6 11. e4) 10... e4 {[%emt 0:02:38]} 11. a3 {[%emt 0:02:51]} (11. h3 $11 Bf5 12. Ba3) 11... h4 $17 {[%emt 0:04:14] White is on the road to losing.} 12. Qc2 {[%emt 0:10:45]} d5 {[%emt 0:04:49] [#] aiming for ...h3.} 13. Nd2 {[%emt 0:06:55]} Bd6 {[%emt 0:09:51] Black is more active.} ({Better is} 13... Bxe2 14. Kxe2 h3) 14. Rg1 {[%emt 0:20:26]} (14. gxh4 $17 {is a better defense.} Bxe2 (14... Rxh4 15. h3 $17) 15. Kxe2) 14... Bf5 {[%emt 0:11:06]} (14... h3 $19 15. Bf1 Nc7) 15. Nf1 {[%emt 0:02:09]} (15. c5 $17 {might work better.} Bc7 16. b4) 15... h3 $19 {[%emt 0:07:06]} 16. Bh1 {[%emt 0:00:32]} Nc7 {[%emt 0:00:55] White is weak on the light squares} 17. O-O-O {[%emt 0:01:38]} b6 {[%emt 0:02:50]} 18. Nf4 {[%emt 0:04:54]} Ng4 {[%emt 0:02:11]} 19. Kb1 {[%emt 0:11:08]} g5 {[%emt 0:00:52]} 20. Ne2 {[%emt 0:00:02]} Nxf2 {[%emt 0:00:21]} 21. Rc1 {[%emt 0:02:22]} Nd3 {[%emt 0:02:24]} 22. Rd1 {[%emt 0:00:34]} Rh6 {[%emt 0:03:11]} 23. Nc3 {[%emt 0:01:42]} Rf6 {[%emt 0:03:14]} 24. Nd2 {[%emt 0:00:19]} Nf2 {[%emt 0:06:37]} 25. Rde1 {[%emt 0:04:42]} Ng4 {[%emt 0:01:36]} 26. Ka2 {[%emt 0:00:43]} Bg6 {[%emt 0:02:09] [#] Threatens to win with ...Rf2.} ({Less strong is} 26... Nxh2 27. Ndxe4 Bxe4 (27... dxe4 28. Qxh2 Qe6 29. Rgf1 $14) 28. Nxe4 dxe4 29. Qxh2 $15) 27. Rgf1 {[%emt 0:01:43]} Rxf1 {[%emt 0:00:55]} 28. Nxf1 {[%emt 0:00:18]} Kf8 {[%emt 0:01:01]} 29. c5 {[%emt 0:01:03]} bxc5 {[%emt 0:00:17]} 30. dxc5 {[%emt 0:00:01]} Be5 {[%emt 0:00:11]} ({Much less strong is} 30... Bxc5 31. Nxe4 Bd6 (31... Bxe4 32. Bxe4 dxe4 33. Qxc5+ Ke8 34. Qxg5 $11) 32. Rd1 $19) 31. Rd1 {[%emt 0:01:15]} Qe7 {[%emt 0:00:35]} 32. Ne2 {[%emt 0:00:47]} Ne6 {[%emt 0:00:29]} 33. Bxe5 {[%emt 0:00:41]} Nxe5 {[%emt 0:00:01] Black is clearly winning.} 34. Qc3 {[%emt 0:00:02]} f6 {[%emt 0:00:56]} 35. Nd2 {[%emt 0:00:20]} Qxc5 {[%emt 0:00:42]} 36. Qxc5+ {[%emt 0:00:24]} Nxc5 {[%emt 0:00:01]} 37. Rc1 {[%emt 0:00:02]} Ncd3 {[%emt 0:00:25]} 38. Rf1 {[%emt 0:00:02]} Ke7 {[%emt 0:00:22] Hoping for ...Ng4.} 39. Nd4 {[%emt 0:00:48]} c5 {[%emt 0:00:52]} 40. Nb5 {[%emt 0:00:04]} Ng4 {[%emt 0:01:24][%csl LRe3,LRh2] Weighted Error Value: White=0.43/Black=0.19 (very precise) .  Mistake:       	White=5     	Black=3      Inaccurate:     	White=2     	Black=2      OK:         	White=7     	Black=14} 0-1

[Event "28th Hit Open-A 2024"]
[Site "Nova Gorica"]
[Date "2024.01.30"]
[Round "6.32"]
[White "Mestek, Igor"]
[Black "Zlatanovic, Marcus"]
[Result "1-0"]
[ECO "D00"]
[WhiteElo "2080"]
[BlackElo "1745"]
[Annotator "NA RC"]
[PlyCount "67"]
[EventDate "2024.01.22"]
[EventType "swiss"]
[EventCountry "SLO"]
[SourceTitle "playchess.com"]
[Source "ChessBase"]
[SourceQuality "1"]
[TimeControl "5400+30"]

1. d4 {[%emt 0:04:07]} d5 {[%emt 0:00:28]} 2. Nc3 {[%emt 0:01:40]} Nf6 {[%emt 0:01:02]} 3. Bf4 {[%emt 0:00:43]} Bf5 {[%emt 0:02:38]} 4. e3 {[%emt 0:00:28]} e6 {[%emt 0:01:21]} 5. Bd3 {[%emt 0:02:04]} Bg6 {[%emt 0:01:30]} 6. h3 {[%emt 0:02:17]} c5 {[%emt 0:05:12]} 7. Nb5 {[%emt 0:05:13]} Na6 {[%emt 0:00:26]} 8. c3 {[%emt 0:00:50]} Be7 {[%emt 0:03:00]} 9. Nf3 {[%emt 0:00:39]} O-O {[%emt 0:01:24]} 10. O-O {[%emt 0:01:30]} Ne8 {[%emt 0:10:17]} 11. a4 {[%emt 0:06:44]} Nac7 {[%emt 0:09:22]} 12. Nxc7 {[%emt 0:05:50]} Nxc7 {[%emt 0:00:15]} 13. Ne5 {[%emt 0:00:25]} Bxd3 {[%emt 0:05:45]} 14. Qxd3 {[%emt 0:01:09]} Bd6 {[%emt 0:12:18]} 15. Qe2 {[%emt 0:08:35]} Qe7 {[%emt 0:08:06]} 16. Qg4 {[%emt 0:07:26]} Ne8 {[%emt 0:15:43]} 17. Qg3 {[%emt 0:01:07]} Kh8 {[%emt 0:03:26]} 18. Nf3 {[%emt 0:04:47]} Bxf4 {[%emt 0:00:33]} 19. Qxf4 {[%emt 0:00:21]} Nf6 {[%emt 0:01:38]} 20. dxc5 {[%emt 0:03:42]} Qxc5 {[%emt 0:01:03]} 21. Ne5 {[%emt 0:00:10]} Qe7 {[%emt 0:00:30]} 22. Rfd1 {[%emt 0:06:38]} Rad8 {[%emt 0:01:59]} 23. Qd4 {[%emt 0:00:30]} a6 {[%emt 0:01:47]} 24. f3 {[%emt 0:02:13]} Rc8 {[%emt 0:03:55]} 25. Qb6 {[%emt 0:02:10]} Qc7 {[%emt 0:00:53]} 26. Qd4 {[%emt 0:01:12]} Qc5 {[%emt 0:01:38]} 27. Rdc1 {[%emt 0:01:39]} Rc7 {[%emt 0:00:35]} 28. b4 {[%emt 0:00:19]} Qxd4 {[%emt 0:00:15]} 29. cxd4 {[%emt 0:00:08]} Rfc8 {[%emt 0:00:45]} 30. Nxf7+ {[%emt 0:00:38]} Kg8 {[%emt 0:00:04]} 31. Rxc7 {[%emt 0:00:14]} Rxc7 {[%emt 0:00:04]} 32. Nd8 {[%emt 0:02:30]} Rc3 {[%emt 0:01:12]} 33. Nxb7 {[%emt 0:00:17]} Rxe3 {[%emt 0:00:07]} 34. Nc5 {[%emt 0:00:28]} 1-0

[Event "28th Hit Open-A 2024"]
[Site "Nova Gorica"]
[Date "2024.01.30"]
[Round "6.33"]
[White "Kejzar, Petra"]
[Black "Barbir, Petar"]
[Result "1-0"]
[ECO "B07"]
[WhiteElo "2025"]
[BlackElo "1738"]
[Annotator "NA RC"]
[PlyCount "45"]
[EventDate "2024.01.22"]
[EventType "swiss"]
[EventCountry "SLO"]
[SourceTitle "playchess.com"]
[Source "ChessBase"]
[SourceQuality "1"]
[TimeControl "5400+30"]

1. e4 {[%emt 0:00:03]} d6 {[%emt 0:00:18]} 2. d4 {[%emt 0:00:10]} Nf6 {[%emt 0:00:08]} 3. Nc3 {[%emt 0:01:34]} c6 {[%emt 0:00:21]} 4. Bf4 {[%emt 0:02:08]} Qa5 {[%emt 0:00:40]} 5. Bd3 {[%emt 0:00:48]} e5 {[%emt 0:00:32]} 6. dxe5 {[%emt 0:00:42]} dxe5 {[%emt 0:00:08]} 7. Bd2 {[%emt 0:00:18]} Bc5 {[%emt 0:02:34]} 8. Nf3 {[%emt 0:01:48]} Be6 {[%emt 0:02:47]} 9. O-O {[%emt 0:01:05]} Qc7 {[%emt 0:01:28]} 10. h3 {[%emt 0:02:47]} h6 {[%emt 0:01:27]} 11. a3 {[%emt 0:02:25]} Nbd7 {[%emt 0:01:24]} 12. b4 {[%emt 0:04:52]} Bd6 {[%emt 0:00:28]} 13. Be3 {[%emt 0:00:38]} g5 {[%emt 0:01:04]} 14. Nh2 {[%emt 0:01:47]} Ke7 {[%emt 0:01:11]} 15. Na4 {[%emt 0:02:53]} Rag8 {[%emt 0:05:11]} 16. c4 {[%emt 0:00:31]} Qb8 {[%emt 0:01:59]} 17. Rb1 {[%emt 0:16:35]} Nxe4 {[%emt 0:11:19]} 18. Bxe4 {[%emt 0:02:15]} f5 {[%emt 0:01:37]} 19. c5 {[%emt 0:00:06]} Bc7 {[%emt 0:00:42]} 20. b5 {[%emt 0:00:43]} fxe4 {[%emt 0:10:33]} 21. bxc6 {[%emt 0:00:34]} Nf6 {[%emt 0:00:43]} 22. Rxb7 {[%emt 0:00:28]} Qc8 {[%emt 0:00:29]} 23. Qd6+ {[%emt 0:00:27]} 1-0

[Event "28th Hit Open-A 2024"]
[Site "Nova Gorica"]
[Date "2024.01.30"]
[Round "6.34"]
[White "Tonel, Giulia"]
[Black "Papler, Peter"]
[Result "1-0"]
[ECO "B07"]
[WhiteElo "1851"]
[BlackElo "1691"]
[Annotator "NA RC"]
[PlyCount "43"]
[EventDate "2024.01.22"]
[EventType "swiss"]
[EventCountry "SLO"]
[SourceTitle "playchess.com"]
[Source "ChessBase"]
[SourceQuality "1"]
[TimeControl "5400+30"]

1. e4 {[%emt 0:03:29]} d6 {[%emt 0:00:08]} 2. d4 {[%emt 0:00:14]} Nf6 {[%emt 0:00:16]} 3. Nc3 {[%emt 0:00:14]} Nbd7 {[%emt 0:00:13]} 4. Nf3 {[%emt 0:00:26]} c6 {[%emt 0:01:03]} 5. a3 {[%emt 0:03:27]} Qc7 {[%emt 0:01:11]} 6. Rg1 {[%emt 0:01:32]} e5 {[%emt 0:00:43]} 7. Be3 {[%emt 0:12:49]} Be7 {[%emt 0:01:02]} 8. Qd2 {[%emt 0:07:17]} Nf8 {[%emt 0:03:48]} 9. h3 {[%emt 0:01:14]} h6 {[%emt 0:02:43]} 10. O-O-O {[%emt 0:04:07]} Ng6 {[%emt 0:01:58]} 11. g4 {[%emt 0:02:58]} Nh7 {[%emt 0:08:00]} 12. Kb1 {[%emt 0:05:23]} Bd7 {[%emt 0:01:39]} 13. Bc4 {[%emt 0:01:05]} Nhf8 {[%emt 0:03:01]} 14. Ne2 {[%emt 0:02:07]} Ne6 {[%emt 0:00:36]} 15. Ng3 {[%emt 0:11:32]} Nef4 {[%emt 0:06:35]} 16. Nh5 {[%emt 0:04:39]} Nxh3 {[%emt 0:02:58]} 17. Nxg7+ {[%emt 0:00:25]} Kf8 {[%emt 0:00:11]} 18. Bxh6 {[%emt 0:01:09]} Kg8 {[%emt 0:00:28]} 19. Nf5 {[%emt 0:02:40]} Nxg1 {[%emt 0:00:39]} 20. Nxe7+ {[%emt 0:00:19]} Nxe7 {[%emt 0:00:42]} 21. Qg5+ {[%emt 0:00:10]} Ng6 {[%emt 0:00:36]} 22. Qxg6# {[%emt 0:00:10]} 1-0

[Event "28th Hit Open-A 2024"]
[Site "Nova Gorica"]
[Date "2024.01.30"]
[Round "6.35"]
[White "Pagano, Sergio"]
[Black "Milicevic, Zoran"]
[Result "1/2-1/2"]
[ECO "D95"]
[WhiteElo "1821"]
[BlackElo "1550"]
[Annotator "NA RC"]
[PlyCount "89"]
[EventDate "2024.01.22"]
[EventType "swiss"]
[EventCountry "SLO"]
[SourceTitle "playchess.com"]
[Source "ChessBase"]
[SourceQuality "1"]
[TimeControl "5400+30"]

1. d4 {[%emt 0:00:04]} d5 {[%emt 0:00:15]} 2. Nf3 {[%emt 0:00:28]} Nf6 {[%emt 0:01:23]} 3. c4 {[%emt 0:00:23]} dxc4 {[%emt 0:00:54]} 4. e3 {[%emt 0:00:53]} c6 {[%emt 0:00:42]} 5. Bxc4 {[%emt 0:00:29]} g6 {[%emt 0:00:48]} 6. Qb3 {[%emt 0:04:19]} e6 {[%emt 0:01:55]} 7. Nc3 {[%emt 0:01:54]} Bg7 {[%emt 0:00:25]} 8. O-O {[%emt 0:02:34]} O-O {[%emt 0:00:10]} 9. e4 {[%emt 0:02:35]} b6 {[%emt 0:01:02]} 10. Be3 {[%emt 0:03:03]} Ba6 {[%emt 0:01:19]} 11. Rfd1 {[%emt 0:03:15]} b5 {[%emt 0:08:21]} 12. Bf1 {[%emt 0:03:24]} Bb7 {[%emt 0:02:13]} 13. a4 {[%emt 0:09:40]} a6 {[%emt 0:01:57]} 14. Rac1 {[%emt 0:05:44]} Nbd7 {[%emt 0:02:42]} 15. d5 {[%emt 0:04:38]} exd5 {[%emt 0:03:05]} 16. exd5 {[%emt 0:00:30]} Nxd5 {[%emt 0:00:41]} 17. Nxd5 {[%emt 0:00:44]} cxd5 {[%emt 0:00:20]} 18. axb5 {[%emt 0:01:16]} axb5 {[%emt 0:00:29]} 19. Qxb5 {[%emt 0:01:51]} Ba6 {[%emt 0:09:11]} 20. Qxd5 {[%emt 0:01:12]} Bxf1 {[%emt 0:01:10]} 21. Kxf1 {[%emt 0:00:38]} Nf6 {[%emt 0:10:19]} 22. Qxd8 {[%emt 0:06:48]} Rfxd8 {[%emt 0:00:30]} 23. Rxd8+ {[%emt 0:01:03]} Rxd8 {[%emt 0:00:11]} 24. b4 {[%emt 0:02:06]} Nd5 {[%emt 0:01:11]} 25. Bc5 {[%emt 0:01:28]} Rb8 {[%emt 0:01:38]} 26. Rb1 {[%emt 0:03:35]} Rb5 {[%emt 0:00:30]} 27. Ne1 {[%emt 0:02:39]} Bf8 {[%emt 0:05:25]} 28. Bxf8 {[%emt 0:00:30]} Kxf8 {[%emt 0:00:10]} 29. Nc2 {[%emt 0:01:04]} Ke7 {[%emt 0:00:53]} 30. Rb3 {[%emt 0:01:04]} Rb7 {[%emt 0:03:17]} 31. g3 {[%emt 0:02:00]} Ke6 {[%emt 0:02:42]} 32. Ke2 {[%emt 0:01:10]} Nb6 {[%emt 0:00:08]} 33. Kd3 {[%emt 0:04:58]} Rd7+ {[%emt 0:00:54]} 34. Nd4+ {[%emt 0:00:35]} Kd5 {[%emt 0:02:42]} 35. Rc3 {[%emt 0:01:00]} Na4 {[%emt 0:00:49]} 36. Rc2 {[%emt 0:02:53]} Rb7 {[%emt 0:00:22]} 37. b5 {[%emt 0:01:42]} Nc5+ {[%emt 0:00:48]} 38. Kc3 {[%emt 0:00:57]} Ne4+ {[%emt 0:00:42]} 39. Kb4 {[%emt 0:09:27]} Kxd4 {[%emt 0:00:01]} 40. f3 Nd6 {[%emt 0:00:02]} 41. Rd2+ {[%emt 0:00:01]} Ke5 42. f4+ Ke6 43. Re2+ Kd7 44. Re5 {[%emt 0:00:23]} f6 {[%emt 0:04:41]} 45. Rd5 1/2-1/2

[Event "28th Hit Open-A 2024"]
[Site "Nova Gorica"]
[Date "2024.01.30"]
[Round "6.36"]
[White "Trybus, Dominika"]
[Black "Gricnik, Tine"]
[Result "1-0"]
[ECO "C02"]
[WhiteElo "1530"]
[BlackElo "1758"]
[Annotator "NA RC"]
[PlyCount "71"]
[EventDate "2024.01.22"]
[EventType "swiss"]
[EventCountry "SLO"]
[SourceTitle "playchess.com"]
[Source "ChessBase"]
[SourceQuality "1"]
[TimeControl "5400+30"]

1. e4 {[%emt 0:02:27]} e6 {[%emt 0:00:25]} 2. d4 {[%emt 0:00:38]} d5 {[%emt 0:00:14]} 3. e5 {[%emt 0:00:07]} c5 {[%emt 0:00:06]} 4. c3 {[%emt 0:00:07]} Ne7 {[%emt 0:01:11]} 5. Be3 {[%emt 0:05:56]} Nf5 {[%emt 0:03:00]} 6. Nf3 {[%emt 0:00:41]} cxd4 {[%emt 0:03:49]} 7. cxd4 {[%emt 0:00:52]} Bb4+ {[%emt 0:02:21]} 8. Nc3 {[%emt 0:01:43]} Qa5 {[%emt 0:01:33]} 9. Qd2 {[%emt 0:03:37]} Bd7 {[%emt 0:01:57]} 10. Bd3 {[%emt 0:02:54]} Nxe3 {[%emt 0:00:51]} 11. fxe3 {[%emt 0:00:18]} O-O {[%emt 0:01:38]} 12. O-O {[%emt 0:02:19]} Na6 {[%emt 0:01:02]} 13. Rac1 {[%emt 0:03:33]} Rac8 {[%emt 0:00:21]} 14. Bb1 {[%emt 0:02:29]} Rc7 {[%emt 0:02:05]} 15. Ng5 {[%emt 0:05:26]} g6 {[%emt 0:05:59]} 16. Qf2 {[%emt 0:05:45]} Be7 {[%emt 0:15:06]} 17. Qh4 {[%emt 0:02:04]} Bxg5 {[%emt 0:00:20]} 18. Qxg5 {[%emt 0:00:11]} Qb4 {[%emt 0:15:25]} 19. Rf2 {[%emt 0:10:25]} Be8 {[%emt 0:02:27]} 20. Rcf1 {[%emt 0:00:58]} Qe7 {[%emt 0:03:05]} 21. Qh6 {[%emt 0:02:14]} f5 {[%emt 0:06:37]} 22. exf6 {[%emt 0:00:15]} Qf7 {[%emt 0:01:05]} 23. Rf3 {[%emt 0:04:23]} Kh8 {[%emt 0:06:14]} 24. Qg7+ {[%emt 0:00:33]} Qxg7 {[%emt 0:01:11]} 25. fxg7+ {[%emt 0:00:06]} Kxg7 {[%emt 0:00:05]} 26. Rxf8 {[%emt 0:00:04]} Bf7 {[%emt 0:00:29]} 27. Ra8 {[%emt 0:02:26]} Re7 {[%emt 0:02:28]} 28. Rxa7 {[%emt 0:01:23]} Nb4 {[%emt 0:00:12]} 29. a3 {[%emt 0:01:26]} Nc6 {[%emt 0:00:05]} 30. Ra8 {[%emt 0:00:27]} e5 {[%emt 0:00:08]} 31. dxe5 {[%emt 0:01:56]} Rxe5 {[%emt 0:00:43]} 32. Ba2 {[%emt 0:01:39]} Ne7 {[%emt 0:00:25]} 33. Ra7 {[%emt 0:01:39]} Rxe3 {[%emt 0:02:12]} 34. Rxb7 {[%emt 0:00:39]} Kg8 {[%emt 0:00:14]} 35. a4 {[%emt 0:01:24]} Re5 {[%emt 0:00:57]} 36. a5 {[%emt 0:01:11]} 1-0